[Event "Turkish Second League 2019"]
[Site "Konya"]
[Date "2019.07.26"]
[Round "7"]
[White "Isik, Recep"]
[Black "Ucucu, Salih"]
[Result "0-1"]
[ECO "B01"]
[WhiteElo "1893"]
[BlackElo "1819"]
[Annotator "NA"]
[PlyCount "130"]
[EventDate "2019.07.22"]
[EventType "team-tourn"]
[EventCountry "TUR"]
[SourceTitle "playchess.com"]
[Source "ChessBase"]
[SourceQuality "1"]
[TimeControl "5400+30"]

1. e4 {[%emt 0:00:30]} d5 {[%emt 0:00:30]} 2. exd5 {[%emt 0:00:30]} Qxd5 {[%emt 0:00:30]} 3. Nc3 {[%emt 0:00:30]} Qd8 {[%emt 0:00:30]} 4. d4 {[%emt 0:00:30]} Nf6 {[%emt 0:00:30]} 5. Nf3 {[%emt 0:00:30]} Bf5 {[%emt 0:00:30]} 6. Bd3 {[%emt 0:00:30]} Bxd3 {[%emt 0:00:30]} 7. Qxd3 {[%emt 0:00:30]} c6 {[%emt 0:00:30]} 8. O-O {[%emt 0:00:30]} e6 {[%emt 0:00:30]} 9. Re1 {[%emt 0:00:30]} Nbd7 {[%emt 0:00:30]} 10. Ne4 {[%emt 0:12:30]} Nxe4 {[%emt 0:09:30]} 11. Rxe4 {[%emt 0:00:30]} Qb6 {[%emt 0:08:30]} 12. b3 {[%emt 0:16:30]} Nf6 {[%emt 0:05:30]} 13. Re2 {[%emt 0:01:30]} O-O-O {[%emt 0:07:30]} 14. a4 {[%emt 0:01:30]} Bd6 {[%emt 0:05:30]} 15. a5 {[%emt 0:00:30]} Qc7 {[%emt 0:00:30]} 16. a6 {[%emt 0:01:30]} b6 {[%emt 0:00:30]} 17. Qc4 {[%emt 0:00:30]} Nd5 {[%emt 0:03:30]} 18. Ne5 {[%emt 0:01:30]} b5 {[%emt 0:08:30]} 19. Qxc6 {[%emt 0:07:30]} Bxe5 {[%emt 0:03:30]} 20. Qb7+ {[%emt 0:00:30]} Qxb7 {[%emt 0:00:00]} 21. axb7+ {[%emt 0:00:30]} Kxb7 {[%emt 0:00:00]} 22. Rxe5 {[%emt 0:00:30]} Rc8 {[%emt 0:02:30]} 23. c4 {[%emt 0:03:30]} bxc4 {[%emt 0:01:30]} 24. bxc4 {[%emt 0:00:30]} Rxc4 {[%emt 0:01:30]} 25. Re2 {[%emt 0:00:00]} Rhc8 {[%emt 0:02:30]} 26. Ba3 {[%emt 0:05:00]} Ra4 {[%emt 0:05:30]} 27. Rb1+ {[%emt 0:04:30]} Ka8 {[%emt 0:06:30]} 28. Bd6 {[%emt 0:00:30]} Nc3 {[%emt 0:06:36]} 29. Rc2 {[%emt 0:00:30]} Rac4 {[%emt 0:01:56]} 30. Ra1 {[%emt 0:02:30]} Ne4 {[%emt 0:01:23]} 31. Rxc4 {[%emt 0:02:30]} Rxc4 {[%emt 0:00:02]} 32. Bf8 {[%emt 0:00:00]} g6 {[%emt 0:03:32]} 33. f3 {[%emt 0:01:00]} Nc3 {[%emt 0:02:26]} 34. Kf2 {[%emt 0:01:30]} Ra4 {[%emt 0:02:09]} 35. Rxa4 {[%emt 0:31:15]} Nxa4 {[%emt 0:00:30]} 36. Ke3 {[%emt 0:00:00]} Nc3 {[%emt 0:00:37]} 37. Kf4 {[%emt 0:00:08]} f6 {[%emt 0:00:11]} 38. h4 {[%emt 0:01:11]} Kb7 {[%emt 0:01:26]} 39. g4 {[%emt 0:00:25]} Kc6 {[%emt 0:01:38]} 40. g5 {[%emt 0:01:42]} Nd5+ {[%emt 0:01:13]} 41. Ke4 {[%emt 0:00:09]} f5+ {[%emt 0:00:28]} 42. Kd3 {[%emt 0:03:07]} Nb6 {[%emt 0:03:05]} 43. Bb4 {[%emt 0:00:58]} a6 {[%emt 0:03:15]} 44. Bd2 {[%emt 0:00:31]} Kd5 {[%emt 0:00:24]} 45. Be1 {[%emt 0:00:39]} Nc4 {[%emt 0:00:13]} 46. Bf2 {[%emt 0:00:16]} a5 {[%emt 0:00:56]} 47. Kc3 {[%emt 0:00:01]} a4 {[%emt 0:00:00]} 48. Kb4 {[%emt 0:01:07]} a3 {[%emt 0:00:18]} 49. Kb3 {[%emt 0:00:00]} Nd2+ {[%emt 0:00:37]} 50. Kxa3 {[%emt 0:00:00]} Nxf3 {[%emt 0:00:00]} 51. Kb4 {[%emt 0:00:18]} Nxd4 {[%emt 0:00:00]} 52. Kc3 {[%emt 0:00:13]} e5 {[%emt 0:00:00]} 53. Kd3 {[%emt 0:00:30]} e4+ {[%emt 0:00:08]} 54. Ke3 {[%emt 0:00:41]} Ne6 {[%emt 0:00:19]} 55. Be1 {[%emt 0:01:21]} f4+ {[%emt 0:00:10]} 56. Kf2 {[%emt 0:00:41]} Kc4 {[%emt 0:00:32]} 57. Ba5 {[%emt 0:00:23]} Kd3 {[%emt 0:00:09]} 58. Bb6 {[%emt 0:00:14]} Nd4 {[%emt 0:00:36]} 59. Ba5 {[%emt 0:00:50]} Nc2 {[%emt 0:00:32]} 60. Bc7 {[%emt 0:00:34]} e3+ {[%emt 0:02:32]} 61. Kf3 {[%emt 0:00:00]} Nd4+ {[%emt 0:00:00]} 62. Kxf4 {[%emt 0:01:35]} Ne6+ {[%emt 0:00:18]} 63. Ke5 {[%emt 0:00:00]} Nxc7 {[%emt 0:00:00]} 64. Kf6 {[%emt 0:00:00]} e2 {[%emt 0:00:08]} 65. Kg7 {[%emt 0:00:32]} e1=Q {[%emt 0:00:07]} 0-1

[Event "Turkish Second League 2019"]
[Site "Konya"]
[Date "2019.07.26"]
[Round "7"]
[White "Camlar, Arda"]
[Black "Degirmenci, Yagiz"]
[Result "1-0"]
[ECO "B25"]
[WhiteElo "1889"]
[BlackElo "1923"]
[Annotator "NA"]
[PlyCount "125"]
[EventDate "2019.07.22"]
[EventType "team-tourn"]
[EventCountry "TUR"]
[SourceTitle "playchess.com"]
[Source "ChessBase"]
[SourceQuality "1"]
[TimeControl "5400+30"]

1. e4 {[%emt 0:02:30]} c5 {[%emt 0:00:30]} 2. Nc3 {[%emt 0:00:30]} Nc6 {[%emt 0:00:30]} 3. g3 {[%emt 0:00:30]} g6 {[%emt 0:00:30]} 4. Bg2 {[%emt 0:00:30]} Bg7 {[%emt 0:00:30]} 5. d3 {[%emt 0:00:30]} d6 {[%emt 0:00:30]} 6. f4 {[%emt 0:00:30]} e6 {[%emt 0:00:30]} 7. Nf3 {[%emt 0:01:30]} Nge7 {[%emt 0:00:30]} 8. Be3 {[%emt 0:01:30]} Rb8 {[%emt 0:03:30]} 9. O-O {[%emt 0:06:30]} O-O {[%emt 0:00:30]} 10. Bf2 {[%emt 0:00:30]} b5 {[%emt 0:07:30]} 11. d4 {[%emt 0:07:30]} b4 {[%emt 0:07:30]} 12. Ne2 {[%emt 0:04:30]} Ba6 {[%emt 0:02:30]} 13. Re1 {[%emt 0:01:30]} cxd4 {[%emt 0:23:30]} 14. Nexd4 {[%emt 0:01:30]} Qc7 {[%emt 0:00:30]} 15. a3 {[%emt 0:06:30]} Bc8 {[%emt 0:10:30]} 16. axb4 {[%emt 0:14:30]} Rxb4 {[%emt 0:00:30]} 17. Rb1 {[%emt 0:00:30]} a6 {[%emt 0:07:30]} 18. Qd2 {[%emt 0:03:30]} Rb8 {[%emt 0:01:30]} 19. Red1 {[%emt 0:07:30]} Rd8 {[%emt 0:00:00]} 20. b3 {[%emt 0:01:30]} Nxd4 {[%emt 0:00:00]} 21. Nxd4 {[%emt 0:11:30]} Bb7 {[%emt 0:00:30]} 22. c4 {[%emt 0:02:30]} Nc6 {[%emt 0:04:30]} 23. Ne2 {[%emt 0:02:30]} Ba8 {[%emt 0:00:30]} 24. b4 {[%emt 0:03:24]} Ne7 {[%emt 0:04:30]} 25. Qa2 {[%emt 0:02:02]} Bb7 {[%emt 0:05:35]} 26. b5 {[%emt 0:05:29]} axb5 {[%emt 0:00:33]} 27. cxb5 {[%emt 0:00:08]} Ra8 {[%emt 0:00:27]} 28. b6 {[%emt 0:03:24]} Qd7 {[%emt 0:00:41]} 29. Qb3 {[%emt 0:00:12]} d5 {[%emt 0:00:42]} 30. e5 {[%emt 0:00:29]} Nc6 {[%emt 0:00:22]} 31. Nc3 {[%emt 0:02:49]} Na5 {[%emt 0:01:03]} 32. Qb5 {[%emt 0:02:12]} Bc6 {[%emt 0:00:07]} 33. Qe2 {[%emt 0:00:13]} Qb7 {[%emt 0:03:08]} 34. Nb5 {[%emt 0:00:43]} Nc4 {[%emt 0:03:31]} 35. Na7 {[%emt 0:01:11]} Bf8 {[%emt 0:01:18]} 36. Rdc1 {[%emt 0:00:26]} Rdc8 {[%emt 0:06:44]} 37. Nxc6 {[%emt 0:02:18]} Rxc6 {[%emt 0:00:25]} 38. Rxc4 {[%emt 0:01:04]} dxc4 {[%emt 0:00:41]} 39. Qf3 {[%emt 0:00:08]} Rxb6 {[%emt 0:00:52]} 40. Qxb7 {[%emt 0:00:28]} Rxb7 {[%emt 0:00:28]} 41. Bxb7 {[%emt 0:00:16]} Ra3 {[%emt 0:00:58]} 42. Be4 {[%emt 0:00:36]} Kg7 {[%emt 0:00:52]} 43. Bd4 {[%emt 0:00:56]} c3 {[%emt 0:00:00]} 44. Bc2 {[%emt 0:00:14]} Ra2 {[%emt 0:00:05]} 45. Bb3 {[%emt 0:00:34]} Re2 {[%emt 0:01:41]} 46. Bxc3 {[%emt 0:01:14]} Bc5+ {[%emt 0:00:30]} 47. Kh1 {[%emt 0:00:30]} h5 {[%emt 0:00:30]} 48. Rb2 {[%emt 0:00:01]} Re3 {[%emt 0:00:50]} 49. Rc2 {[%emt 0:00:12]} Bb6 {[%emt 0:00:06]} 50. Kg2 {[%emt 0:00:19]} h4 {[%emt 0:00:27]} 51. Bc4 {[%emt 0:00:30]} hxg3 {[%emt 0:00:48]} 52. hxg3 {[%emt 0:00:01]} Re4 {[%emt 0:00:00]} 53. Bd2 {[%emt 0:00:42]} Bd8 {[%emt 0:00:22]} 54. Kf3 {[%emt 0:00:46]} Rd4 {[%emt 0:00:06]} 55. Be3 {[%emt 0:00:00]} Rd7 {[%emt 0:00:27]} 56. Rd2 {[%emt 0:00:51]} Rxd2 {[%emt 0:00:07]} 57. Bxd2 {[%emt 0:00:00]} Bc7 {[%emt 0:00:23]} 58. Bb4 {[%emt 0:00:33]} g5 {[%emt 0:00:07]} 59. Bd6 {[%emt 0:00:14]} gxf4 {[%emt 0:00:24]} 60. Bxc7 {[%emt 0:00:44]} fxg3 {[%emt 0:00:04]} 61. Bd8 {[%emt 0:00:00]} Kg6 {[%emt 0:00:25]} 62. Kxg3 {[%emt 0:00:13]} Kf5 {[%emt 0:00:05]} 63. Bf6 {[%emt 0:00:00]} 1-0

[Event "Turkish Second League 2019"]
[Site "Konya"]
[Date "2019.07.26"]
[Round "7"]
[White "Kayan, Veli"]
[Black "Zor, Alber Kadir"]
[Result "0-1"]
[ECO "B20"]
[WhiteElo "1863"]
[BlackElo "2160"]
[Annotator "NA"]
[PlyCount "80"]
[EventDate "2019.07.22"]
[EventType "team-tourn"]
[EventCountry "TUR"]
[SourceTitle "playchess.com"]
[Source "ChessBase"]
[SourceQuality "1"]
[TimeControl "5400+30"]

1. e4 {[%emt 0:00:30]} g6 {[%emt 0:02:30]} 2. g3 {[%emt 0:00:30]} Bg7 {[%emt 0:00:30]} 3. Bg2 {[%emt 0:00:30]} c5 {[%emt 0:00:30]} 4. Ne2 {[%emt 0:00:30]} Nc6 {[%emt 0:00:30]} 5. d3 {[%emt 0:00:30]} d6 {[%emt 0:00:30]} 6. O-O {[%emt 0:01:30]} e5 {[%emt 0:01:30]} 7. c3 {[%emt 0:02:30]} Nge7 {[%emt 0:10:30]} 8. Be3 {[%emt 0:00:30]} O-O {[%emt 0:00:30]} 9. Qd2 {[%emt 0:02:30]} Be6 {[%emt 0:04:30]} 10. Na3 {[%emt 0:02:30]} Qd7 {[%emt 0:03:30]} 11. Nc2 {[%emt 0:05:30]} Rad8 {[%emt 0:06:30]} 12. Bh6 {[%emt 0:06:30]} d5 {[%emt 0:01:30]} 13. Bxg7 {[%emt 0:03:30]} Kxg7 {[%emt 0:03:30]} 14. Rfd1 {[%emt 0:10:30]} Bh3 {[%emt 0:13:30]} 15. Qe1 {[%emt 0:09:30]} Bxg2 {[%emt 0:03:30]} 16. Kxg2 {[%emt 0:00:30]} f5 {[%emt 0:00:00]} 17. f4 {[%emt 0:07:30]} fxe4 {[%emt 0:03:00]} 18. dxe4 {[%emt 0:00:30]} d4 {[%emt 0:00:00]} 19. cxd4 {[%emt 0:03:30]} cxd4 {[%emt 0:03:00]} 20. fxe5 {[%emt 0:04:30]} d3 {[%emt 0:01:30]} 21. Nf4 {[%emt 0:05:30]} d2 {[%emt 0:08:30]} 22. Qe3 {[%emt 0:00:30]} Nxe5 {[%emt 0:01:30]} 23. Qc3 {[%emt 0:01:30]} N7c6 {[%emt 0:03:30]} 24. Ne3 {[%emt 0:02:30]} Kh6 {[%emt 0:08:07]} 25. Nfd5 {[%emt 0:03:30]} Nf3 {[%emt 0:02:22]} 26. h3 {[%emt 0:08:11]} Nce5 {[%emt 0:05:05]} 27. Ng4+ {[%emt 0:01:34]} Nxg4 {[%emt 0:01:15]} 28. hxg4 {[%emt 0:00:01]} g5 {[%emt 0:00:54]} 29. Rh1+ {[%emt 0:05:56]} Kg6 {[%emt 0:00:21]} 30. Qc5 {[%emt 0:07:38]} Rde8 {[%emt 0:07:06]} 31. Nf4+ {[%emt 0:03:05]} Rxf4 {[%emt 0:00:53]} 32. gxf4 {[%emt 0:01:42]} Qxg4+ {[%emt 0:00:01]} 33. Kf2 {[%emt 0:00:00]} Qxf4 {[%emt 0:00:16]} 34. Qf5+ {[%emt 0:00:18]} Qxf5 {[%emt 0:01:02]} 35. exf5+ {[%emt 0:00:30]} Kxf5 {[%emt 0:00:00]} 36. Kxf3 {[%emt 0:00:00]} g4+ {[%emt 0:00:51]} 37. Kf2 {[%emt 0:00:23]} Kf4 {[%emt 0:01:07]} 38. Rxh7 {[%emt 0:00:54]} g3+ {[%emt 0:00:14]} 39. Kf1 {[%emt 0:00:27]} Re1+ {[%emt 0:01:10]} 40. Kg2 {[%emt 0:01:48]} Rxa1 {[%emt 0:00:07]} 0-1

[Event "Turkish Second League 2019"]
[Site "Konya"]
[Date "2019.07.26"]
[Round "7"]
[White "Karatas, Kutay"]
[Black "Bicer, Atakan Mert"]
[Result "1/2-1/2"]
[ECO "B99"]
[WhiteElo "1846"]
[BlackElo "1870"]
[Annotator "NA"]
[PlyCount "96"]
[EventDate "2019.07.22"]
[EventType "team-tourn"]
[EventCountry "TUR"]
[SourceTitle "playchess.com"]
[Source "ChessBase"]
[SourceQuality "1"]
[TimeControl "5400+30"]

1. e4 {[%emt 0:00:30]} c5 {[%emt 0:00:30]} 2. Nf3 {[%emt 0:00:30]} d6 {[%emt 0:02:30]} 3. d4 {[%emt 0:00:30]} cxd4 {[%emt 0:00:30]} 4. Nxd4 {[%emt 0:00:00]} Nf6 {[%emt 0:00:00]} 5. Nc3 {[%emt 0:00:00]} a6 {[%emt 0:00:00]} 6. Bg5 {[%emt 0:00:00]} e6 {[%emt 0:02:30]} 7. f4 {[%emt 0:00:00]} Be7 {[%emt 0:00:00]} 8. Qf3 {[%emt 0:00:00]} Qc7 {[%emt 0:00:00]} 9. O-O-O {[%emt 0:00:00]} Nbd7 {[%emt 0:00:30]} 10. g4 {[%emt 0:00:00]} b5 {[%emt 0:01:30]} 11. Bxf6 {[%emt 0:00:00]} Nxf6 {[%emt 0:00:00]} 12. g5 {[%emt 0:00:30]} Nd7 {[%emt 0:00:00]} 13. f5 {[%emt 0:00:00]} Nc5 {[%emt 0:02:30]} 14. f6 {[%emt 0:11:00]} gxf6 {[%emt 0:04:30]} 15. gxf6 {[%emt 0:00:30]} Bf8 {[%emt 0:00:30]} 16. Rg1 {[%emt 0:00:30]} b4 {[%emt 0:03:30]} 17. Nd5 {[%emt 0:00:30]} exd5 {[%emt 0:06:30]} 18. exd5 {[%emt 0:00:30]} Bd7 {[%emt 0:04:30]} 19. Rg7 {[%emt 0:00:30]} O-O-O {[%emt 0:15:30]} 20. Rxf7 {[%emt 0:00:30]} Bh6+ {[%emt 0:02:30]} 21. Kb1 {[%emt 0:00:00]} Qb6 {[%emt 0:05:30]} 22. Nc6 {[%emt 0:09:00]} Rhf8 {[%emt 0:10:30]} 23. Rxh7 {[%emt 0:04:30]} Bg5 {[%emt 0:00:30]} 24. f7 {[%emt 0:00:00]} Kb7 {[%emt 0:08:30]} 25. Rg7 {[%emt 0:24:00]} Bxc6 {[%emt 0:00:30]} 26. dxc6+ {[%emt 0:00:30]} Qxc6 {[%emt 0:00:00]} 27. Qf5 {[%emt 0:00:30]} Kb8 {[%emt 0:20:07]} 28. Rxg5 {[%emt 0:03:30]} Qe4 {[%emt 0:03:58]} 29. Qf6 {[%emt 0:09:30]} Kc7 {[%emt 0:02:09]} 30. b3 {[%emt 0:05:30]} Qe3 {[%emt 0:00:42]} 31. Bg2 {[%emt 0:02:30]} Rd7 {[%emt 0:01:30]} 32. Bd5 {[%emt 0:15:57]} Rfxf7 {[%emt 0:00:34]} 33. Bxf7 {[%emt 0:00:30]} Ne4 {[%emt 0:00:00]} 34. Rg3 {[%emt 0:05:16]} Qxg3 {[%emt 0:00:01]} 35. hxg3 {[%emt 0:01:24]} Nxf6 {[%emt 0:00:02]} 36. Be6 {[%emt 0:02:33]} Re7 {[%emt 0:01:06]} 37. Bf5 {[%emt 0:00:02]} d5 {[%emt 0:00:41]} 38. Kb2 {[%emt 0:02:54]} Kd6 {[%emt 0:00:26]} 39. Rf1 {[%emt 0:01:13]} Ke5 {[%emt 0:00:24]} 40. Re1+ {[%emt 0:03:08]} Ne4 {[%emt 0:00:05]} 41. Bxe4 {[%emt 0:00:22]} dxe4 {[%emt 0:00:02]} 42. c3 {[%emt 0:00:12]} a5 {[%emt 0:00:24]} 43. cxb4 {[%emt 0:00:46]} axb4 {[%emt 0:00:30]} 44. a3 {[%emt 0:00:30]} bxa3+ {[%emt 0:00:30]} 45. Kxa3 {[%emt 0:00:30]} Rg7 {[%emt 0:00:00]} 46. b4 {[%emt 0:00:59]} Rxg3+ {[%emt 0:00:00]} 47. Ka4 {[%emt 0:00:00]} Kd4 {[%emt 0:00:00]} 48. b5 {[%emt 0:00:00]} Ke5 {[%emt 0:01:36]} 1/2-1/2

[Event "Turkish Second League 2019"]
[Site "Konya"]
[Date "2019.07.26"]
[Round "7"]
[White "Turkmen, Yusuf Cagan"]
[Black "Aydogdu, Cagatay"]
[Result "0-1"]
[ECO "B15"]
[WhiteElo "1796"]
[BlackElo "1845"]
[Annotator "NA"]
[PlyCount "98"]
[EventDate "2019.07.22"]
[EventType "team-tourn"]
[EventCountry "TUR"]
[SourceTitle "playchess.com"]
[Source "ChessBase"]
[SourceQuality "1"]
[TimeControl "5400+30"]

1. d4 {[%emt 0:01:30]} g6 {[%emt 0:00:30]} 2. e4 {[%emt 0:00:30]} c6 {[%emt 0:03:30]} 3. Nc3 {[%emt 0:03:30]} d5 {[%emt 0:00:30]} 4. Nf3 {[%emt 0:07:30]} Bg7 {[%emt 0:00:30]} 5. h3 {[%emt 0:01:30]} dxe4 {[%emt 0:00:30]} 6. Nxe4 {[%emt 0:00:30]} Nf6 {[%emt 0:00:00]} 7. Bd3 {[%emt 0:02:30]} Bf5 {[%emt 0:01:00]} 8. Qe2 {[%emt 0:05:30]} Nxe4 {[%emt 0:01:30]} 9. Bxe4 {[%emt 0:00:00]} Bxe4 {[%emt 0:00:30]} 10. Qxe4 {[%emt 0:00:00]} Qd5 {[%emt 0:00:00]} 11. Qd3 {[%emt 0:01:30]} Na6 {[%emt 0:01:00]} 12. Be3 {[%emt 0:05:30]} O-O {[%emt 0:00:30]} 13. O-O {[%emt 0:00:30]} Rad8 {[%emt 0:00:30]} 14. Rad1 {[%emt 0:01:30]} Qxa2 {[%emt 0:03:30]} 15. c4 {[%emt 0:04:30]} Qa5 {[%emt 0:00:30]} 16. Qe4 {[%emt 0:01:30]} Rfe8 {[%emt 0:02:30]} 17. Bd2 {[%emt 0:03:30]} Qf5 {[%emt 0:01:30]} 18. Qe3 {[%emt 0:01:30]} Nc7 {[%emt 0:10:30]} 19. Bc3 {[%emt 0:01:30]} h5 {[%emt 0:02:30]} 20. Rd2 {[%emt 0:05:30]} Kh7 {[%emt 0:01:30]} 21. Ng5+ {[%emt 0:01:30]} Kg8 {[%emt 0:00:30]} 22. Nf3 {[%emt 0:00:00]} Ne6 {[%emt 0:06:30]} 23. d5 {[%emt 0:11:00]} cxd5 {[%emt 0:03:30]} 24. Bxg7 {[%emt 0:02:30]} Kxg7 {[%emt 0:00:30]} 25. Rfd1 {[%emt 0:02:30]} dxc4 {[%emt 0:05:30]} 26. Rxd8 {[%emt 0:00:30]} Nxd8 {[%emt 0:00:30]} 27. Qxa7 {[%emt 0:01:30]} e5 {[%emt 0:04:30]} 28. Qa4 {[%emt 0:07:30]} Qe6 {[%emt 0:01:30]} 29. Nd2 {[%emt 0:01:30]} Nc6 {[%emt 0:01:30]} 30. Qxc4 {[%emt 0:05:30]} Qd6 {[%emt 0:01:30]} 31. Qc1 {[%emt 0:01:30]} Rd8 {[%emt 0:00:00]} 32. Qc2 {[%emt 0:00:30]} Qd5 {[%emt 0:01:00]} 33. Kf1 {[%emt 0:00:31]} Qb5+ {[%emt 0:02:30]} 34. Ke1 {[%emt 0:01:07]} Rd4 {[%emt 0:02:30]} 35. Nf3 {[%emt 0:04:40]} Nb4 {[%emt 0:01:30]} 36. Qe2 {[%emt 0:00:15]} Rxd1+ {[%emt 0:02:30]} 37. Qxd1 {[%emt 0:06:42]} Nd3+ {[%emt 0:00:30]} 38. Kf1 {[%emt 0:00:35]} Nxb2+ {[%emt 0:00:30]} 39. Qe2 {[%emt 0:00:00]} Qxe2+ {[%emt 0:00:30]} 40. Kxe2 {[%emt 0:00:02]} Kf6 {[%emt 0:00:00]} 41. Kd2 {[%emt 0:00:00]} Nc4+ {[%emt 0:00:00]} 42. Kc3 {[%emt 0:00:11]} Nd6 {[%emt 0:00:30]} 43. Nd2 {[%emt 0:00:08]} Ke6 {[%emt 0:00:30]} 44. Kb4 {[%emt 0:00:00]} Kd5 {[%emt 0:00:00]} 45. Nf1 {[%emt 0:00:04]} b6 {[%emt 0:00:00]} 46. h4 {[%emt 0:00:51]} Kd4 {[%emt 0:00:30]} 47. Ne3 {[%emt 0:00:00]} f5 {[%emt 0:01:30]} 48. Nc2+ {[%emt 0:00:00]} Kd3 {[%emt 0:00:30]} 49. Ne3 {[%emt 0:00:00]} Ke2 {[%emt 0:00:30]} 0-1

[Event "Turkish Second League 2019"]
[Site "Konya"]
[Date "2019.07.26"]
[Round "7"]
[White "Kara, Gulce Nehir"]
[Black "Ozbek, Busra"]
[Result "1/2-1/2"]
[ECO "B07"]
[WhiteElo "1767"]
[BlackElo "1866"]
[Annotator "NA"]
[PlyCount "88"]
[EventDate "2019.07.22"]
[EventType "team-tourn"]
[EventCountry "TUR"]
[SourceTitle "playchess.com"]
[Source "ChessBase"]
[SourceQuality "1"]
[TimeControl "5400+30"]

1. e4 d6 2. d4 Nf6 3. Nc3 g6 4. g3 c6 5. Bg2 Bg7 6. Nge2 Qc7 7. O-O O-O 8. h3 e5 9. a4 a5 10. Be3 Na6 11. f4 Nb4 12. g4 {[%emt 0:34:00]} exf4 13. Bxf4 Be6 14. Qd2 Bc4 15. Bh6 Rae8 16. Rf2 Nd7 17. Bxg7 Kxg7 18. Nd1 c5 19. Ne3 Bxe2 20. Rxe2 cxd4 21. Qxd4+ Ne5 22. Rd1 Rd8 23. c3 Nbc6 24. Qd2 Ne7 25. Rf2 h6 26. Kh1 Qd7 27. b3 b5 28. Qa2 Rb8 29. Qa3 b4 30. cxb4 Rxb4 31. Nc2 Rb6 32. Nd4 Rfb8 33. Nb5 Nc8 34. Qb2 Qe6 35. Rfd2 Kh7 36. Qc3 Rc6 37. Qxa5 Qxb3 38. Nd4 Qg3 39. Nxc6 Nc4 40. Qc7 Nxd2 41. Qxb8 Nf3 42. Bxf3 Qxf3+ 43. Kh2 Qf2+ 44. Kh1 Qf3+ 1/2-1/2

[Event "Turkish Second League 2019"]
[Site "Konya"]
[Date "2019.07.26"]
[Round "7"]
[White "Eken, Atakan"]
[Black "Ozturk, Emir"]
[Result "1/2-1/2"]
[ECO "B07"]
[WhiteElo "1763"]
[BlackElo "2216"]
[Annotator "NA"]
[PlyCount "59"]
[EventDate "2019.07.22"]
[EventType "team-tourn"]
[EventCountry "TUR"]
[SourceTitle "playchess.com"]
[Source "ChessBase"]
[SourceQuality "1"]
[TimeControl "5400+30"]

1. e4 {[%emt 0:01:30]} g6 {[%emt 0:00:30]} 2. d4 {[%emt 0:00:30]} Bg7 {[%emt 0:00:00]} 3. Nf3 {[%emt 0:00:30]} d6 {[%emt 0:00:00]} 4. c3 {[%emt 0:01:30]} Nf6 {[%emt 0:01:30]} 5. Bd3 {[%emt 0:01:30]} O-O {[%emt 0:00:30]} 6. O-O {[%emt 0:00:30]} c6 {[%emt 0:02:30]} 7. Qe2 {[%emt 0:01:30]} d5 {[%emt 0:10:30]} 8. Nbd2 {[%emt 0:07:30]} dxe4 {[%emt 0:05:30]} 9. Nxe4 {[%emt 0:00:00]} Nxe4 {[%emt 0:00:00]} 10. Bxe4 {[%emt 0:00:00]} Bg4 {[%emt 0:01:00]} 11. h3 {[%emt 0:02:30]} Bxf3 {[%emt 0:00:00]} 12. Bxf3 {[%emt 0:02:30]} e6 {[%emt 0:00:00]} 13. Bf4 {[%emt 0:01:30]} Nd7 {[%emt 0:04:30]} 14. a4 {[%emt 0:02:30]} a5 {[%emt 0:04:30]} 15. Rfe1 {[%emt 0:03:30]} Re8 {[%emt 0:02:30]} 16. Rad1 {[%emt 0:03:30]} Nb6 {[%emt 0:03:30]} 17. Qc2 {[%emt 0:02:30]} Nd5 {[%emt 0:01:30]} 18. Be5 {[%emt 0:07:30]} b5 {[%emt 0:03:30]} 19. Bxg7 {[%emt 0:02:30]} Kxg7 {[%emt 0:00:30]} 20. axb5 {[%emt 0:06:30]} cxb5 {[%emt 0:00:00]} 21. Qb3 {[%emt 0:10:30]} Qd7 {[%emt 0:11:00]} 22. Re5 {[%emt 0:07:30]} a4 {[%emt 0:07:30]} 23. Qc2 {[%emt 0:05:30]} Ra6 {[%emt 0:08:30]} 24. Bxd5 {[%emt 0:08:30]} exd5 {[%emt 0:00:30]} 25. Qd3 {[%emt 0:00:30]} Rae6 {[%emt 0:00:30]} 26. Rde1 {[%emt 0:02:01]} Qc6 {[%emt 0:07:30]} 27. Rxe6 {[%emt 0:00:32]} Rxe6 {[%emt 0:05:30]} 28. Rxe6 {[%emt 0:00:43]} fxe6 {[%emt 0:00:30]} 29. Qe3 {[%emt 0:00:32]} Qd6 {[%emt 0:06:10]} 30. Qe2 {[%emt 0:03:20]} 1/2-1/2

[Event "Turkish Second League 2019"]
[Site "Konya"]
[Date "2019.07.26"]
[Round "7"]
[White "Zuberoglu, Ibrahim Berk"]
[Black "Erdogmus, Yagiz Kaan"]
[Result "0-1"]
[ECO "A37"]
[WhiteElo "1737"]
[BlackElo "1744"]
[Annotator "NA"]
[PlyCount "76"]
[EventDate "2019.07.22"]
[EventType "team-tourn"]
[EventCountry "TUR"]
[SourceTitle "playchess.com"]
[Source "ChessBase"]
[SourceQuality "1"]
[TimeControl "5400+30"]

1. g3 {[%emt 0:00:30]} c5 {[%emt 0:00:30]} 2. c4 {[%emt 0:01:30]} Nc6 {[%emt 0:01:30]} 3. Bg2 {[%emt 0:00:30]} g6 {[%emt 0:02:30]} 4. Nc3 {[%emt 0:02:30]} Bg7 {[%emt 0:01:30]} 5. Nf3 {[%emt 0:00:30]} d6 {[%emt 0:02:30]} 6. O-O {[%emt 0:02:30]} e5 {[%emt 0:01:30]} 7. d3 {[%emt 0:00:30]} Nge7 {[%emt 0:01:30]} 8. Rb1 {[%emt 0:01:30]} O-O {[%emt 0:03:30]} 9. a3 {[%emt 0:01:30]} h6 {[%emt 0:06:30]} 10. b4 {[%emt 0:07:30]} Rb8 {[%emt 0:08:30]} 11. e3 {[%emt 0:23:30]} f5 {[%emt 0:05:30]} 12. Qc2 {[%emt 0:01:30]} b6 {[%emt 0:06:30]} 13. Rd1 {[%emt 0:08:30]} Bb7 {[%emt 0:03:30]} 14. Ne2 {[%emt 0:04:30]} g5 {[%emt 0:05:30]} 15. b5 {[%emt 0:08:30]} Na5 {[%emt 0:00:30]} 16. Bd2 {[%emt 0:01:30]} Ng6 {[%emt 0:05:30]} 17. Bxa5 {[%emt 0:02:30]} bxa5 {[%emt 0:00:30]} 18. Rb3 {[%emt 0:15:23]} h5 {[%emt 0:02:30]} 19. d4 {[%emt 0:03:05]} e4 {[%emt 0:07:30]} 20. Ne1 {[%emt 0:01:56]} Qe7 {[%emt 0:01:30]} 21. b6 {[%emt 0:03:27]} Bc6 {[%emt 0:05:30]} 22. bxa7 {[%emt 0:01:17]} Qxa7 {[%emt 0:00:30]} 23. Rxb8 {[%emt 0:02:49]} Rxb8 {[%emt 0:00:30]} 24. Rb1 {[%emt 0:02:07]} Rxb1 {[%emt 0:04:30]} 25. Qxb1 {[%emt 0:00:01]} cxd4 {[%emt 0:03:02]} 26. Nxd4 {[%emt 0:00:19]} Bxd4 {[%emt 0:00:44]} 27. exd4 {[%emt 0:00:02]} Qxd4 {[%emt 0:00:43]} 28. Qb8+ {[%emt 0:00:19]} Nf8 {[%emt 0:00:54]} 29. Qd8 {[%emt 0:01:31]} Qd2 {[%emt 0:01:57]} 30. Kf1 {[%emt 0:01:11]} Bd7 {[%emt 0:03:41]} 31. f4 {[%emt 0:01:28]} gxf4 {[%emt 0:09:48]} 32. Qg5+ {[%emt 0:00:14]} Kf7 {[%emt 0:00:31]} 33. Qxh5+ {[%emt 0:01:05]} Ke7 {[%emt 0:00:15]} 34. Qg5+ {[%emt 0:00:21]} Ke8 {[%emt 0:01:22]} 35. Qxf4 {[%emt 0:00:46]} Qd4 {[%emt 0:01:02]} 36. Qc1 {[%emt 0:00:37]} Be6 {[%emt 0:00:30]} 37. Nc2 {[%emt 0:00:25]} Bxc4+ {[%emt 0:00:33]} 38. Ke1 {[%emt 0:00:02]} Qg1+ {[%emt 0:00:00]} 0-1